fUSD/lending_fUSD_20250112
["ID","MTS","AMOUNT","RATE_DAILY","PERIOD"]
[348639215,1736695840044,-500.0,9.973e-05,2]
[348639216,1736695840054,-500.0,9.973e-05,2]
[348639217,1736695840064,-500.0,9.973e-05,2]
[348639218,1736695840073,-500.0,9.973e-05,2]
[348639219,1736695840083,-500.0,9.973e-05,2]
[348639220,1736695840092,-500.0,9.973e-05,2]
[348639221,1736695840102,-500.0,9.973e-05,2]
[348639222,1736695840112,-500.0,9.973e-05,2]
[348639223,1736695840122,-500.0,9.973e-05,2]
[348639224,1736695840131,-1332.2,9.973e-05,2]
[348639225,1736695840140,-500.0,9.973e-05,2]
[348639226,1736695840150,-500.0,9.973e-05,2]
[348639227,1736695840159,-500.0,9.973e-05,2]
[348639228,1736695840169,-503.73088612,9.973e-05,2]
[348639229,1736695840178,-500.0,9.973e-05,2]
[348639230,1736695840188,-500.0,9.973e-05,2]
[348639231,1736695840197,-500.0,9.973e-05,2]
[348639232,1736695840206,-500.0,9.973e-05,2]
[348639233,1736695840216,-500.0,9.973e-05,2]
[348639235,1736695840225,-500.0,9.973e-05,2]
[348639236,1736695840234,-500.0,9.973e-05,2]
[348639237,1736695840244,-500.0,9.973e-05,2]
[348639238,1736695840254,-500.0,9.973e-05,2]
[348639240,1736695840264,-191.68839425,9.973e-05,2]
[348639241,1736695840273,-500.0,9.973e-05,2]
[348639242,1736695840283,-500.0,9.973e-05,2]
[348639243,1736695840293,-500.0,9.973e-05,2]
[348639244,1736695840303,-500.0,9.973e-05,2]
[348639246,1736695840312,-500.0,9.973e-05,2]
[348639248,1736695840322,-500.0,9.973e-05,2]
[348639250,1736695840331,-500.0,9.973e-05,2]
[348639252,1736695840340,-500.0,9.973e-05,2]
[348639254,1736695840349,-500.0,9.973e-05,2]
[348639256,1736695840359,-486.32897422,9.973e-05,2]
[348639258,1736695840368,-500.0,9.973e-05,2]
[348639260,1736695840376,-500.0,9.973e-05,2]
[348639262,1736695840386,-500.0,9.973e-05,2]
[348639264,1736695840396,-500.0,9.973e-05,2]
[348639266,1736695840405,-270.62880808,9.973e-05,2]
[348639268,1736695840414,-500.0,9.973e-05,2]
[348639270,1736695840423,-500.0,9.973e-05,2]
[348639272,1736695840433,-500.0,9.973e-05,2]
[348639274,1736695840442,-500.0,9.973e-05,2]
[348639277,1736695840452,-500.0,9.973e-05,2]
[348639279,1736695840462,-500.0,9.973e-05,2]
[348639281,1736695840471,-500.0,9.973e-05,2]
[348639303,1736695840655,-500.0,9.973e-05,2]
[348639305,1736695840665,-266.23399173,9.973e-05,2]
[348639307,1736695840675,-500.0,9.973e-05,2]
[348639309,1736695840684,-500.0,9.973e-05,2]
[348639311,1736695840693,-500.0,9.973e-05,2]
[348639313,1736695840703,-500.0,9.973e-05,2]
[348639315,1736695840712,-500.0,9.973e-05,2]
[348639317,1736695840722,-501.10658168,9.973e-05,2]
[348639319,1736695840731,-501.93483655,9.973e-05,2]
[348639321,1736695840740,-500.0,9.973e-05,2]
[348639323,1736695840750,-500.0,9.973e-05,2]
[348639325,1736695840759,-500.0,9.973e-05,2]
[348639327,1736695840769,-500.0,9.973e-05,2]
[348639329,1736695840778,-500.0,9.973e-05,2]
[348639331,1736695840788,-500.0,9.973e-05,2]
[348639333,1736695840797,-500.0,9.973e-05,2]
[348639335,1736695840806,-500.0,9.973e-05,2]
[348639337,1736695840815,-500.0,9.973e-05,2]
[348639339,1736695840824,-280.2460035,9.973e-05,2]
[348639341,1736695840833,-500.0,9.973e-05,2]
[348639342,1736695840842,-500.0,9.973e-05,2]
[348639344,1736695840851,-500.0,9.973e-05,2]
[348639346,1736695840861,-500.0,9.973e-05,2]
[348639348,1736695840870,-503.03803374,9.973e-05,2]
[348639350,1736695840879,-500.0,9.973e-05,2]
[348639352,1736695840888,-500.0,9.973e-05,2]
[348639354,1736695840897,-500.0,9.973e-05,2]
[348639356,1736695840906,-500.6679053,9.973e-05,2]
[348639358,1736695840915,-500.0,9.973e-05,2]
[348639360,1736695840924,-500.0,9.973e-05,2]
[348639362,1736695840933,-500.0,9.973e-05,2]
[348639364,1736695840943,-500.0,9.973e-05,2]
[348639366,1736695840952,-500.0,9.973e-05,2]
[348639368,1736695840962,-500.0,9.973e-05,2]
[348639370,1736695840974,-500.0,9.973e-05,2]
[348639372,1736695840984,-500.0,9.973e-05,2]
[348639375,1736695841009,-500.0,9.973e-05,2]
[348639377,1736695841019,-500.0,9.973e-05,2]
[348639379,1736695841028,-500.0,9.973e-05,2]
[348639381,1736695841037,-524.34332142,9.973e-05,2]
[348639383,1736695841046,-500.0,9.973e-05,2]
[348639385,1736695841055,-500.0,9.973e-05,2]
[348639387,1736695841065,-500.0,9.973e-05,2]
[348639389,1736695841074,-500.0,9.973e-05,2]
[348639391,1736695841084,-500.0,9.973e-05,2]
[348639392,1736695841094,-503.10245252,9.973e-05,2]
[348639395,1736695841103,-500.0,9.973e-05,2]
[348639397,1736695841113,-500.0,9.973e-05,2]
[348639399,1736695841122,-500.0,9.973e-05,2]
[348639401,1736695841131,-500.0,9.973e-05,2]
[348639402,1736695841140,-500.0,9.973e-05,2]
[348639404,1736695841149,-500.0,9.973e-05,2]
[348639406,1736695841159,-500.0,9.973e-05,2]
[348639409,1736695841168,-500.0,9.973e-05,2]
[348639410,1736695841177,-500.0,9.973e-05,2]
[348639412,1736695841187,-500.0,9.973e-05,2]
[348639415,1736695841196,-500.0,9.973e-05,2]
[348639417,1736695841206,-500.0,9.973e-05,2]
[348639418,1736695841215,-500.0,9.973e-05,2]
[348639421,1736695841226,-500.0,9.973e-05,2]
[348639423,1736695841235,-500.0,9.973e-05,2]
[348639425,1736695841245,-500.0,9.973e-05,2]
[348639426,1736695841255,-500.0,9.973e-05,2]
[348639429,1736695841264,-500.0,9.973e-05,2]
[348639431,1736695841274,-500.0,9.973e-05,2]
[348639432,1736695841283,-500.0,9.973e-05,2]
[348639435,1736695841293,-500.0,9.973e-05,2]
[348639437,1736695841302,-569.82,9.973e-05,2]
[348639439,1736695841313,-500.0,9.973e-05,2]
[348639441,1736695841323,-500.0,9.973e-05,2]
[348639443,1736695841333,-500.0,9.973e-05,2]
[348639445,1736695841342,-500.0,9.973e-05,2]
[348639447,1736695841351,-500.0,9.973e-05,2]
[348639449,1736695841360,-500.0,9.973e-05,2]
[348639451,1736695841369,-500.0,9.973e-05,2]
[348639453,1736695841378,-507.01333084,9.973e-05,2]
[348639455,1736695841387,-500.0,9.973e-05,2]
[348639456,1736695841395,-501.87636153,9.973e-05,2]
[348639458,1736695841404,-500.0,9.973e-05,2]
[348639460,1736695841413,-500.0,9.973e-05,2]
[348639462,1736695841423,-500.0,9.973e-05,2]
[348639464,1736695841432,-500.0,9.973e-05,2]
[348639466,1736695841441,-500.0,9.973e-05,2]
[348639468,1736695841450,-500.0,9.973e-05,2]
[348639470,1736695841460,-500.0,9.973e-05,2]
[348639472,1736695841470,-500.0,9.973e-05,2]
[348639474,1736695841479,-500.0,9.973e-05,2]
[348639476,1736695841488,-500.0,9.973e-05,2]
[348639478,1736695841497,-500.0,9.973e-05,2]
[348639480,1736695841506,-500.0,9.973e-05,2]
[348639482,1736695841515,-500.0,9.973e-05,2]
[348639484,1736695841524,-500.0,9.973e-05,2]
[348639486,1736695841534,-500.0,9.973e-05,2]
[348639488,1736695841544,-500.0,9.973e-05,2]
[348639491,1736695841553,-535.4671915,9.973e-05,2]
[348639493,1736695841563,-500.0,9.973e-05,2]
[348639495,1736695841572,-500.0,9.973e-05,2]
[348639497,1736695841582,-500.0,9.973e-05,2]
[348639499,1736695841591,-857.06,9.973e-05,2]
[348639501,1736695841600,-500.0,9.973e-05,2]
[348639503,1736695841609,-500.0,9.973e-05,2]
[348639505,1736695841618,-500.0,9.973e-05,2]
[348639506,1736695841628,-500.0,9.973e-05,2]
[348639508,1736695841637,-500.0,9.973e-05,2]
[348639510,1736695841647,-500.0,9.973e-05,2]
[348639512,1736695841656,-500.0,9.973e-05,2]
[348639514,1736695841665,-500.0,9.973e-05,2]
[348639516,1736695841674,-500.0,9.973e-05,2]
[348639518,1736695841683,-500.0,9.973e-05,2]
[348639520,1736695841693,-544.81,9.973e-05,2]
[348639522,1736695841702,-500.0,9.973e-05,2]
[348639524,1736695841711,-500.0,9.973e-05,2]
[348639526,1736695841720,-522.5626517,9.973e-05,2]
[348639528,1736695841730,-500.0,9.973e-05,2]
[348639530,1736695841739,-500.0,9.973e-05,2]
[348639532,1736695841748,-500.0,9.973e-05,2]
[348639534,1736695841758,-500.0,9.973e-05,2]
[348639536,1736695841767,-500.0,9.973e-05,2]
[348639538,1736695841776,-500.0,9.973e-05,2]
[348639540,1736695841785,-472.48458383,9.973e-05,2]
[348639542,1736695841794,-500.0,9.973e-05,2]
[348639544,1736695841803,-500.0,9.973e-05,2]
[348639546,1736695841812,-504.02455567,9.973e-05,2]
[348639548,1736695841821,-286.60378668,9.973e-05,2]
[348639550,1736695841831,-500.0,9.973e-05,2]
[348639552,1736695841840,-500.0,9.973e-05,2]
[348639554,1736695841849,-500.0,9.973e-05,2]
[348639556,1736695841858,-500.0,9.973e-05,2]
[348639558,1736695841868,-540.07,9.973e-05,2]
[348639560,1736695841880,-500.0,9.973e-05,2]
[348639562,1736695841889,-500.0,9.973e-05,2]
[348639564,1736695841898,-500.0,9.973e-05,2]
[348639567,1736695841911,-500.0,9.973e-05,2]
[348639569,1736695841921,-500.0,9.973e-05,2]
[348639571,1736695841930,-500.0,9.973e-05,2]
[348639573,1736695841939,-500.0,9.973e-05,2]
[348639575,1736695841949,-500.0,9.973e-05,2]
[348639577,1736695841958,-500.0,9.973e-05,2]
[348639579,1736695841971,-500.0,9.973e-05,2]
[348639580,1736695841981,-500.0,9.973e-05,2]
[348639582,1736695841990,-500.0,9.973e-05,2]
[348639585,1736695842000,-587.77,9.973e-05,2]
[348639586,1736695842009,-500.0,9.973e-05,2]
[348639589,1736695842019,-500.0,9.973e-05,2]
[348639591,1736695842028,-500.0,9.973e-05,2]
[348639593,1736695842038,-500.0,9.973e-05,2]
[348639594,1736695842047,-500.0,9.973e-05,2]
[348639596,1736695842056,-501.48334771,9.973e-05,2]
[348639598,1736695842066,-500.0,9.973e-05,2]
[348639601,1736695842076,-503.74050456,9.973e-05,2]
[348639602,1736695842087,-500.0,9.973e-05,2]
[348639604,1736695842096,-500.0,9.973e-05,2]
[348639606,1736695842106,-500.0,9.973e-05,2]
[348639609,1736695842115,-500.0,9.973e-05,2]
[348639611,1736695842125,-500.0,9.973e-05,2]
[348639613,1736695842135,-500.0,9.973e-05,2]
[348639615,1736695842144,-500.0,9.973e-05,2]
[348639616,1736695842154,-500.0,9.973e-05,2]
[348639618,1736695842163,-500.0,9.973e-05,2]
[348639620,1736695842172,-501.41511313,9.973e-05,2]
[348639622,1736695842181,-500.0,9.973e-05,2]
[348639624,1736695842191,-500.0,9.973e-05,2]
[348639626,1736695842200,-500.0,9.973e-05,2]
[348639628,1736695842209,-500.0,9.973e-05,2]
[348639630,1736695842219,-500.0,9.973e-05,2]
[348639632,1736695842228,-500.0,9.973e-05,2]
[348639634,1736695842237,-500.0,9.973e-05,2]
[348639636,1736695842246,-500.0,9.973e-05,2]
[348639638,1736695842256,-500.0,9.973e-05,2]
[348639640,1736695842265,-179.0482255,9.973e-05,2]
[348639642,1736695842275,-500.0,9.973e-05,2]
[348639644,1736695842284,-500.0,9.973e-05,2]
[348639646,1736695842294,-500.0,9.973e-05,2]
[348639648,1736695842303,-238.1594246,9.973e-05,2]
[348639650,1736695842312,-500.0,9.973e-05,2]
[348639652,1736695842321,-525.99,9.973e-05,2]
[348639654,1736695842330,-500.0,9.973e-05,2]
[348639656,1736695842340,-500.0,9.973e-05,2]
[348639658,1736695842349,-319.18815056,9.973e-05,2]
[348639660,1736695842358,-500.0,9.973e-05,2]
[348639662,1736695842368,-500.0,9.973e-05,2]
[348639664,1736695842376,-500.0,9.973e-05,2]
[348639666,1736695842386,-504.28734458,9.973e-05,2]
[348639668,1736695842395,-500.0,9.973e-05,2]
[348639670,1736695842404,-486.17413973,9.973e-05,2]
[348639672,1736695842413,-500.0,9.973e-05,2]
[348639674,1736695842423,-8132.5,9.973e-05,2]
[348639676,1736695842432,-500.0,9.973e-05,2]
[348639678,1736695842442,-500.0,9.973e-05,2]
[348639680,1736695842452,-500.0,9.973e-05,2]
[348639682,1736695842461,-507.61482305,9.973e-05,2]
[348639684,1736695842471,-500.0,9.973e-05,2]
[348639686,1736695842480,-500.0,9.973e-05,2]
[348639688,1736695842490,-500.0,9.973e-05,2]
[348639690,1736695842499,-537.88,9.973e-05,2]
[348639692,1736695842509,-500.0,9.973e-05,2]
[348639695,1736695842518,-500.0,9.973e-05,2]
[348639698,1736695842527,-500.0,9.973e-05,2]
[348639700,1736695842537,-500.0,9.973e-05,2]
[348639702,1736695842547,-500.0,9.973e-05,2]
[348639704,1736695842556,-295.08703049,9.973e-05,2]
[348639706,1736695842565,-500.0,9.973e-05,2]
[348639708,1736695842574,-500.0,9.973e-05,2]
[348639710,1736695842583,-408.31234725,9.973e-05,2]
[348639712,1736695842593,-500.0,9.973e-05,2]
[348639713,1736695842602,-500.0,9.973e-05,2]
[348639714,1736695842611,-500.0,9.973e-05,2]
[348639715,1736695842620,-500.0,9.973e-05,2]
[348639716,1736695842629,-500.0,9.973e-05,2]
[348639717,1736695842637,-353.97745826,9.973e-05,2]
[348639718,1736695842646,-500.0,9.973e-05,2]
[348639720,1736695842655,-500.0,9.973e-05,2]
[348639722,1736695842664,-500.0,9.973e-05,2]
[348639723,1736695842674,-500.0,9.973e-05,2]
[348639724,1736695842683,-500.0,9.973e-05,2]
[348639725,1736695842692,-500.0,9.973e-05,2]
[348639726,1736695842700,-500.0,9.973e-05,2]
[348639727,1736695842709,-200.0,9.974e-05,2]
[348639728,1736695842718,-3433.40753182,9.974e-05,2]
[348639729,1736695842727,-239.62436471,9.974e-05,2]
[348639730,1736695842736,-3433.40753182,9.974e-05,2]
[348639731,1736695842745,-3032.09,9.974e-05,2]
[348639733,1736695842755,-1296.39,9.974e-05,2]
[348639735,1736695842764,-1893.92,9.974e-05,2]
[348639737,1736695842773,-500.0,9.974e-05,2]
[348639741,1736695842782,-1801.47,9.974e-05,2]
[348639745,1736695842791,-776.51,9.974e-05,2]
[348639747,1736695842800,-647.6,9.974e-05,2]
[348639752,1736695842810,-859.33,9.974e-05,2]
[348639757,1736695842819,-1114.18388249,9.974e-05,2]
[348639761,1736695842828,-100596.02401094,9.974e-05,2]
[348639765,1736695842838,-1114.18388249,9.975e-05,2]
[348639768,1736695842847,-2942.92074156,9.975e-05,2]
[348639772,1736695842857,-1353.8082472,9.975e-05,2]
[348639776,1736695842867,-6866.81506365,9.976e-05,2]
[348639780,1736695842876,-2467.99212969,9.976e-05,2]
[348639783,1736695842885,-200.0,9.976e-05,2]
[348639787,1736695842894,-1353.8082472,9.976e-05,2]
[348639791,1736695842905,-1353.8082472,9.976e-05,2]
[348639794,1736695842914,-490.48679026,9.977e-05,2]
[348639798,1736695842923,-6866.81506365,9.977e-05,2]
[348639802,1736695842932,-239.62436471,9.977e-05,2]
[348639805,1736695842942,-3433.40753182,9.977e-05,2]
[348639809,1736695842951,-6866.81506365,9.977e-05,2]
[348639813,1736695842961,-3433.40753182,9.978e-05,2]
[348639817,1736695842973,-3433.40753182,9.978e-05,2]
[348639820,1736695842983,-3433.40753182,9.979e-05,2]
[348639824,1736695842992,-6866.81506365,9.979e-05,2]
[348639828,1736695843002,-200.0,9.979e-05,2]
[348639832,1736695843011,-490.48679026,9.979e-05,2]
[348639835,1736695843020,-200.0,9.979e-05,2]
[348639838,1736695843029,-2942.92074157,9.98e-05,2]
[348639841,1736695843039,-6866.81506365,9.981e-05,2]
[348639844,1736695843048,-1114.18388249,9.981e-05,2]
[348639847,1736695843059,-3433.40753182,9.981e-05,2]
[348639850,1736695843067,-1114.18388249,9.981e-05,2]
[348639853,1736695843077,-2942.92074156,9.982e-05,2]
[348639855,1736695843086,-3433.40753182,9.982e-05,2]
[348639858,1736695843095,-1043.31,9.982e-05,2]
[348639861,1736695843104,-1706.26,9.982e-05,2]
[348639864,1736695843114,-776.51,9.982e-05,2]
[348639867,1736695843123,-647.6,9.982e-05,2]
[348639870,1736695843133,-500.0,9.982e-05,2]
[348639873,1736695843142,-875.22,9.982e-05,2]
[348639876,1736695843151,-500.0,9.982e-05,2]
[348639878,1736695843161,-239.62436471,9.982e-05,2]
[348639880,1736695843171,-204.03238833,9.982e-05,2]
[348639883,1736695843180,-1114.18388249,9.983e-05,2]
[348639885,1736695843189,-2942.92074156,9.983e-05,2]
[348639886,1736695843199,-100596.02401094,9.983e-05,2]
[348639888,1736695843208,-239.62436472,9.983e-05,2]
[348639890,1736695843218,-100596.02401094,9.983e-05,2]
[348639893,1736695843227,-2942.92074157,9.983e-05,2]
[348639895,1736695843237,-6866.81506365,9.984e-05,2]
[348639896,1736695843246,-490.48679026,9.985e-05,2]
[348639899,1736695843256,-239.62436471,9.985e-05,2]
[348639901,1736695843266,-200.0,9.986e-05,2]
[348639902,1736695843275,-1114.18388249,9.986e-05,2]
[348639904,1736695843284,-100596.02401094,9.986e-05,2]
[348639906,1736695843293,-2467.99212969,9.986e-05,2]
[348639909,1736695843303,-2467.99212969,9.986e-05,2]
[348639911,1736695843313,-239.62436471,9.987e-05,2]
[348639913,1736695843324,-2942.92074157,9.987e-05,2]
[348639915,1736695843334,-1114.18388249,9.987e-05,2]
[348639917,1736695843343,-204.03238833,9.988e-05,2]
[348639919,1736695843353,-200.0,9.988e-05,2]
[348639921,1736695843363,-53334.39600051,9.988e-05,2]
[348639924,1736695843372,-200.0,9.989e-05,2]
[348639927,1736695843382,-1353.8082472,9.989e-05,2]
[348639929,1736695843391,-2467.99212969,9.989e-05,2]
[348639931,1736695843401,-204.03238833,9.989e-05,2]
[348639933,1736695843411,-1114.18388249,9.989e-05,2]
[348639935,1736695843420,-490.48679026,9.989e-05,2]
[348639937,1736695843429,-239.62436471,9.99e-05,2]
[348639939,1736695843439,-100596.02401094,9.99e-05,2]
[348639941,1736695843448,-204.03238833,9.99e-05,2]
[348639943,1736695843457,-200.0,9.991e-05,2]
[348639945,1736695843467,-490.48679026,9.991e-05,2]
[348639946,1736695843476,-1353.8082472,9.992e-05,2]
[348639948,1736695843485,-2942.92074157,9.992e-05,2]
[348639950,1736695843494,-490.48679026,9.992e-05,2]
[348639952,1736695843504,-2942.92074157,9.992e-05,2]
[348639954,1736695843513,-200.0,9.993e-05,2]
[348639956,1736695843522,-239.62436472,9.993e-05,2]
[348639958,1736695843532,-204.03238833,9.993e-05,2]
[348639960,1736695843541,-239.62436471,9.993e-05,2]
[348639962,1736695843551,-490.48679026,9.993e-05,2]
[348639964,1736695843560,-1353.8082472,9.994e-05,2]
[348639966,1736695843569,-239.62436472,9.994e-05,2]
[348639968,1736695843579,-239.62436471,9.994e-05,2]
[348639970,1736695843588,-1353.8082472,9.994e-05,2]
[348639972,1736695843598,-1353.8082472,9.994e-05,2]
[348639974,1736695843607,-200.0,9.995e-05,2]
[348639976,1736695843616,-490.48679026,9.995e-05,2]
[348639978,1736695843625,-200.0,9.995e-05,2]
[348639980,1736695843634,-239.62436471,9.995e-05,2]
[348639982,1736695843644,-239.62436472,9.996e-05,2]
[348639984,1736695843654,-2942.92074156,9.996e-05,2]
[348639986,1736695843663,-3433.40753182,9.996e-05,2]
[348640005,1736695843830,-200.0,9.996e-05,2]
[348640007,1736695843840,-505.27492351,9.997e-05,2]
[348640009,1736695843850,-1114.18388249,9.997e-05,2]
[348640011,1736695843859,-2467.99212969,9.997e-05,2]
[348640013,1736695843868,-2942.92074156,9.997e-05,2]
[348640015,1736695843878,-1114.18388249,9.998e-05,2]
[348640017,1736695843887,-204.03238833,9.998e-05,2]
[348640019,1736695843896,-490.48679026,9.998e-05,2]
[348640021,1736695843905,-490.48679026,9.998e-05,2]
[348640023,1736695843914,-3704.73647879,9.998e-05,3]
[348640025,1736695843923,-852932.42124392,9.998e-05,3]
[348640027,1736695843932,-200.0,9.998e-05,2]
[348640029,1736695843942,-8132.5,9.998e-05,2]
[348640031,1736695843951,-239.62436471,9.998e-05,2]
[348640033,1736695843960,-200.0,9.998e-05,2]
[348640035,1736695843973,-239.62436471,9.999e-05,2]
[348640037,1736695843982,-200.0,9.999e-05,2]
[348640039,1736695843991,-239.62436472,9.999e-05,2]
[348640041,1736695844000,-467.98,9.999e-05,2]
[348640043,1736695844010,-1119.63682782,9.999e-05,3]
[348640045,1736695844020,-1119.63682782,9.999e-05,3]
[348640047,1736695844029,-1119.63682782,9.999e-05,3]
[348640049,1736695844039,-1119.6368278,9.999e-05,3]
[348640051,1736695844050,-1119.63682782,9.999e-05,3]
[348640053,1736695844060,-1119.63682782,9.999e-05,3]
[348640055,1736695844069,-2942.92074157,9.999e-05,2]
[348640057,1736695844078,-1237.67,9.999e-05,2]
[348640059,1736695844087,-500.0,9.999e-05,2]
[348640061,1736695844096,-1000.0,9.999e-05,2]
[348640063,1736695844106,-690.47,9.999e-05,2]
[348640065,1736695844115,-156.997619,9.999e-05,2]
[348640067,1736695844124,-500.0,9.999e-05,2]
[348640069,1736695844133,-500.0,9.999e-05,2]
[348640071,1736695844143,-1673.99,9.999e-05,2]
[348640073,1736695844152,-1601.27,9.999e-05,2]
[348640075,1736695844161,-500.0,9.999e-05,2]
[348640077,1736695844170,-584.81,9.999e-05,2]
[348640078,1736695844179,-500.0,9.999e-05,2]
[348640080,1736695844188,-500.0,9.999e-05,2]
[348640082,1736695844197,-1055.42,9.999e-05,2]
[348640084,1736695844207,-1275.32,9.999e-05,2]
[348640087,1736695844216,-1407.41,9.999e-05,2]
[348640088,1736695844226,-1257.52,9.999e-05,2]
[348640090,1736695844236,-8132.5,9.999e-05,2]
[348640092,1736695844245,-8132.5,9.999e-05,2]
[348640095,1736695844255,-8132.5,9.999e-05,2]
[348640097,1736695844264,-8132.5,9.999e-05,2]
[348640098,1736695844273,-8132.5,9.999e-05,2]
[348640101,1736695844283,-8132.5,9.999e-05,2]
[348640103,1736695844293,-8132.5,9.999e-05,2]
[348640105,1736695844303,-8132.5,9.999e-05,2]
[348640107,1736695844312,-8132.5,9.999e-05,2]
[348640110,1736695844322,-8132.5,9.999e-05,2]
[348640112,1736695844332,-8132.5,9.999e-05,2]
[348640114,1736695844341,-8132.5,9.999e-05,2]
[348640116,1736695844350,-8132.5,9.999e-05,2]
[348640118,1736695844359,-8132.5,9.999e-05,2]
[348640120,1736695844369,-8132.5,9.999e-05,2]
[348640122,1736695844378,-8132.5,9.999e-05,2]
[348640124,1736695844387,-8132.5,9.999e-05,2]
[348640126,1736695844396,-8132.5,9.999e-05,2]
[348640127,1736695844404,-8132.5,9.999e-05,2]
[348640129,1736695844413,-8132.5,9.999e-05,2]
[348640131,1736695844423,-8132.59701681,9.999e-05,2]
[348640133,1736695844432,-2864.84,9.999e-05,2]
[348640135,1736695844441,-1173.2,9.999e-05,2]
[348640137,1736695844450,-2682.66,9.999e-05,2]
[348640139,1736695844459,-200.0,0.0001,2]
[348640141,1736695844468,-239.62436471,0.0001,2]
[348640143,1736695844478,-10399956.9007179,0.0001,2]
[348640145,1736695844487,-190.66,0.0001,2]
[348640147,1736695844496,-82114.29624293,0.0001,2]
[348640149,1736695844505,-961.45947811,0.0001,2]
[348640151,1736695844514,-240.75002384,0.0001,2]
[348640153,1736695844523,-774.1830946,0.0001,2]
[348640155,1736695844534,-490.48679026,0.0001,2]
[348640157,1736695844544,-174.04,0.0001,2]
[348640159,1736695844553,-3623790.71637981,0.0001,2]
[348640161,1736695844563,-331.62505289,0.0001,2]
[348640163,1736695844571,-7312.62577763,0.0001,2]
[348640165,1736695844580,-653.73425882,0.0001,2]
[348640167,1736695844589,-6879711.39007729,0.0001,2]
[348640171,1736695844616,-477.65263077,0.0001,2]
[348640173,1736695844627,-522.27499128,0.0001,2]
[348640207,1736695844952,-500.0,9.862e-05,2]
[348640209,1736695844962,-226.23613048,9.973e-05,2]
[348640211,1736695844973,-273.76386952,9.973e-05,2]
[348640213,1736695844982,-142108.17657618,0.0001,2]
[348640215,1736695845002,-527.40827862,0.0001,2]
[348640217,1736695845019,-372.34049029,0.0001,2]
[348640219,1736695845031,-632.92146505,0.0001,2]
[348640221,1736695845042,-1491.27006269,0.0001,2]
[348640289,1736695845786,-7859.26857308,0.0001,2]
[348640291,1736695845797,-27592.89817333,0.0001,2]
[348640293,1736695845808,-2918.09792665,0.0001,2]
[348640296,1736695845820,-2774.0273353,0.0001,2]
[348640298,1736695845831,-3480.3405859,0.0001,2]
[348640300,1736695845842,-1920.95940903,0.0001,2]
[348640302,1736695845853,-658.35061865,0.0001,2]
[348640340,1736695846206,-513.81098143,9.973e-05,2]
[348640342,1736695846216,-500.0,9.973e-05,2]
[348640344,1736695846225,-1500.55990031,0.0001,2]
[348640396,1736695846704,-500.0,9.863e-05,2]
[348640398,1736695846714,-51273.99676656,0.0001,2]
[348640401,1736695846724,-1094.49999998,0.0001,2]
[348640434,1736695847028,-500.0,9.862e-05,2]
[348640436,1736695847037,-500.0,9.862e-05,2]
[348640438,1736695847047,-181.151191,9.863e-05,2]
[348640440,1736695847056,-500.0,9.964e-05,2]
[348640442,1736695847066,-10428.05338013,0.0001,2]
[348640444,1736695847076,-9573.06212365,0.0001,2]
[348640446,1736695847087,-1081.89403899,0.0001,2]
[348640449,1736695847106,-68199.29999963,0.0001,2]
[348640682,1736695876590,-2000.0,0.000123,30]
[348640683,1736695876612,-2000.0,0.0001231,30]
[348640684,1736695876633,-2000.0,0.0001232,30]
[348640685,1736695876742,-3052.417408,0.0001233,30]
[348640686,1736695992614,907.437419,0.00022999,120]
[348640689,1736696079930,1500.0,8.984e-05,2]
[348640692,1736696105052,551.03582402,0.00023,120]
[348640693,1736696117278,874.13,8.219e-05,2]
[348640695,1736696128296,250.0,8.967e-05,2]
[348640696,1736696133115,3346.79,8.967e-05,2]
[348640697,1736696210168,179.7,7.181e-05,2]
[348640698,1736696215437,502.66,8.977e-05,2]
[348640699,1736696249023,1109.05,0.00023,120]
[348640700,1736696263163,250.0,8.973e-05,2]
[348640701,1736696272896,1148.0,0.00023,120]
[348640702,1736696302071,1000.0,8.962e-05,2]
[348640703,1736696326697,1148.0,0.00023,120]
[348640704,1736696389795,200.0,8.961e-05,2]
[348640705,1736696393271,250.0,8.961e-05,2]
[348640706,1736696467025,-2251.29,0.000123,31]
[348640707,1736696467054,-2251.29,0.000123,31]
[348640708,1736696467078,-2251.29,0.000123,31]